bitfinex/quotes_BTCUSD_20250127
["timestamp","ask_amount","ask_price","bid_price","bid_amount"]
[1738008511000,0.99531149,99776.0,99775.0,0.33428371]
[1738008511234,0.99531149,99802.0,99783.0,0.15]
[1738008511476,0.99531149,99802.0,99776.0,0.173]
[1738008511477,0.99531149,99802.0,99794.0,0.023]
[1738008511693,0.99531149,99802.0,99801.0,0.323299]
[1738008511946,0.99531149,99802.0,99801.0,0.33320785]
[1738008512428,0.00204928,99802.0,99801.0,0.75785514]
[1738008512840,0.00204928,99802.0,99801.0,1.29725514]
[1738008513054,4.928e-05,99802.0,99801.0,1.29725514]
[1738008513251,0.00104928,99802.0,99801.0,1.30751372]
[1738008514716,4.928e-05,99802.0,99801.0,1.30751372]
[1738008514915,0.50283174,99841.0,99801.0,1.30751372]
[1738008514916,0.99531149,99833.0,99832.0,0.300252]
[1738008515130,0.99531149,99833.0,99832.0,0.33309116]
[1738008515555,0.00019117,99841.0,99840.0,0.30024]
[1738008515770,0.00019117,99841.0,99840.0,0.42058729]
[1738008515977,0.00019117,99841.0,99840.0,0.43041306]
[1738008515978,0.99550266,99841.0,99840.0,0.43041306]
[1738008516194,0.00019117,99841.0,99840.0,0.43041306]
[1738008516607,1.7e-07,99841.0,99840.0,0.43041306]
[1738008516822,1.7e-07,99841.0,99840.0,0.45029556]
[1738008517079,1.7e-07,99841.0,99840.0,1.41649556]
[1738008517503,0.00014197,99841.0,99840.0,1.41649556]
[1738008517706,0.00014197,99841.0,99840.0,1.41749556]
[1738008517906,0.99531149,99873.0,99840.0,1.41749556]
[1738008517907,0.99531149,99873.0,99847.0,0.330229]
[1738008518113,0.0006364,99848.0,99847.0,0.47778937]
[1738008518365,0.99531149,99873.0,99872.0,0.150192]
[1738008518580,0.0001418,99876.0,99873.0,0.32319]
[1738008518722,0.0001418,99876.0,99873.0,0.42053729]
[1738008518925,0.0001418,99876.0,99873.0,0.43032759]
[1738008519453,0.0001418,99876.0,99875.0,0.300187]
[1738008519654,0.99545329,99876.0,99875.0,0.300187]
[1738008519810,0.99545329,99876.0,99875.0,0.40726621]
[1738008520015,0.0001418,99876.0,99875.0,0.43026621]
[1738008520254,0.0001418,99876.0,99875.0,0.45747929]
[1738008520455,0.99545329,99876.0,99875.0,0.43026621]
[1738008521882,0.99545329,99876.0,99875.0,0.43326621]
[1738008522135,0.99545329,99876.0,99875.0,0.33791892]
[1738008522692,0.99545329,99876.0,99875.0,0.01473192]
[1738008522898,1.22403929,99876.0,99875.0,0.005]
[1738008523083,1.32138658,99876.0,99875.0,0.005]
[1738008523711,1.07385329,99876.0,99875.0,0.003]
[1738008523963,0.99545329,99876.0,99875.0,0.153187]
[1738008524165,0.99545329,99876.0,99875.0,0.003]
[1738008524365,0.99545329,99876.0,99875.0,0.00973943]
[1738008524625,0.99545329,99876.0,99875.0,0.15]
[1738008525050,0.99545329,99876.0,99875.0,0.30992643]
[1738008526184,0.99545329,99876.0,99875.0,0.00973943]
[1738008526526,0.99545329,99876.0,99875.0,0.15992643]
[1738008526730,0.99545329,99876.0,99875.0,0.323187]
[1738008526964,0.99545329,99876.0,99875.0,0.33292173]
[1738008527981,0.99545329,99876.0,99875.0,0.33392173]
[1738008528405,0.99545329,99876.0,99875.0,0.33292173]
[1738008528600,0.99545329,99876.0,99875.0,0.33392173]
[1738008529510,0.99545329,99876.0,99875.0,0.33492173]
[1738008530139,0.99545329,99876.0,99875.0,0.18473473]
[1738008530342,0.99545329,99876.0,99875.0,0.325187]
[1738008530720,0.99545329,99876.0,99875.0,0.33241158]
[1738008531161,0.99545329,99876.0,99875.0,0.33141158]
[1738008531379,0.0001418,99876.0,99875.0,0.33241158]
[1738008531577,0.0001418,99876.0,99875.0,0.42975887]
[1738008531721,0.0001418,99876.0,99875.0,0.42875887]
[1738008531923,0.0001418,99876.0,99875.0,0.33141158]
[1738008532128,0.0001418,99876.0,99875.0,0.33241158]
[1738008532332,0.0001418,99876.0,99875.0,0.33141158]
[1738008532737,0.0001418,99876.0,99875.0,0.33441158]
[1738008532938,0.99545329,99876.0,99875.0,0.33441158]
[1738008533572,0.99545329,99876.0,99875.0,0.33541158]
[1738008534428,0.99545329,99876.0,99875.0,0.43275887]
[1738008534978,0.99545329,99876.0,99875.0,0.33541158]
[1738008539266,0.99538107,99876.0,99875.0,0.33541158]
[1738008539888,0.99538107,99876.0,99875.0,0.43275887]
[1738008540692,6.958e-05,99876.0,99875.0,0.43275887]
[1738008541136,0.99538107,99876.0,99875.0,0.31241158]
[1738008541553,0.99538107,99876.0,99875.0,0.30841158]
[1738008541763,0.99538107,99876.0,99875.0,0.30941158]
[1738008541964,0.99538107,99876.0,99875.0,0.31741158]
[1738008542171,0.99538107,99876.0,99875.0,0.33241158]
[1738008542614,0.99538107,99876.0,99875.0,0.33541158]
[1738008542817,0.99538107,99876.0,99875.0,0.33241158]
[1738008543023,0.99538107,99876.0,99875.0,0.42875887]
[1738008543463,6.958e-05,99876.0,99875.0,0.96815887]
[1738008543657,6.958e-05,99876.0,99875.0,0.96915887]
[1738008543895,6.958e-05,99876.0,99875.0,1.05034047]
[1738008544068,6.958e-05,99876.0,99875.0,1.04934047]
[1738008544272,6.958e-05,99876.0,99875.0,1.05134047]
[1738008544902,6.958e-05,99876.0,99875.0,1.05334047]
[1738008545118,6.958e-05,99876.0,99875.0,1.07367507]
[1738008545321,6.958e-05,99876.0,99875.0,1.06967507]
[1738008546099,6.958e-05,99876.0,99875.0,1.07867507]
[1738008546302,6.958e-05,99876.0,99875.0,1.08267507]
[1738008547304,0.99531149,99898.0,99875.0,1.08267507]
[1738008547305,0.99531149,99898.0,99897.0,0.323154]
[1738008547516,0.0001419,99900.0,99899.0,0.323151]
[1738008547733,0.0001419,99900.0,99899.0,0.42868665]
[1738008547934,0.0001419,99900.0,99899.0,0.96808665]
[1738008548360,9e-07,99900.0,99899.0,1.30538665]
[1738008548776,9e-07,99900.0,99899.0,1.31038665]
[1738008549267,0.0001027,99902.0,99901.0,0.310148]
[1738008549460,0.0001027,99902.0,99901.0,0.43049529]
[1738008549660,0.0001027,99902.0,99901.0,0.43866229]
[1738008550069,0.0001027,99902.0,99901.0,1.33636694]
[1738008550273,0.0001027,99902.0,99901.0,1.35636694]
[1738008550896,0.0001027,99902.0,99901.0,1.33636694]
[1738008551097,0.0001027,99902.0,99901.0,1.36036694]
[1738008551563,7e-07,99902.0,99901.0,1.36036694]
[1738008551770,0.99545319,99939.0,99934.0,0.35013]
[1738008551990,0.00029013,99937.0,99936.0,0.323096]
[1738008552465,0.00029013,99937.0,99936.0,0.3312242]
[1738008553669,0.00029013,99937.0,99936.0,0.42857149]
[1738008554625,0.00029013,99937.0,99936.0,0.42957149]
[1738008555130,0.00029013,99937.0,99936.0,0.43357149]
[1738008555481,0.00029013,99937.0,99936.0,0.1861282]
[1738008555690,0.00029013,99937.0,99936.0,0.3132242]
[1738008555891,0.00029013,99937.0,99936.0,0.1631282]
[1738008556117,0.00029013,99937.0,99936.0,0.3362242]
[1738008556331,0.00029013,99937.0,99936.0,0.43357149]
[1738008556533,0.00029013,99937.0,99936.0,0.3352242]
[1738008556710,0.00029013,99937.0,99936.0,0.3372242]
[1738008557399,0.00029013,99937.0,99936.0,0.3352242]
[1738008557742,0.00029013,99937.0,99936.0,0.3312242]
[1738008557956,0.00029013,99937.0,99936.0,0.3342242]
[1738008558171,0.17503316,99968.0,99939.0,0.15]
[1738008558380,0.00100939,99967.0,99941.0,0.15]
[1738008558592,0.00100939,99967.0,99963.0,0.150054]
[1738008558796,1.49849573,99968.0,99963.0,0.150054]
[1738008559001,1.49849573,99968.0,99959.0,0.15006]
[1738008559176,0.00100939,99967.0,99964.0,0.00808129]
[1738008559414,1.49849573,99968.0,99961.0,0.150058]
[1738008559617,1.49849573,99968.0,99960.0,0.173]
[1738008559795,1.49849573,99968.0,99963.0,0.023]
[1738008559956,1.49849573,99968.0,99965.0,0.023]
[1738008560186,1.49849573,99968.0,99967.0,0.023]
[1738008560904,1.49849573,99968.0,99967.0,0.00807602]
[1738008561133,1.57669573,99968.0,99965.0,0.023]
[1738008562490,1.57669573,99968.0,99955.0,0.21009048]
[1738008562491,0.00100939,99967.0,99956.0,0.15]
[1738008562879,0.150051,99966.0,99957.0,0.00808217]
[1738008563041,0.00100939,99965.0,99957.0,0.023]
[1738008563234,1.57669573,99968.0,99960.0,0.023]
[1738008563437,0.150049,99967.0,99957.0,0.023]
[1738008563637,0.150051,99966.0,99957.0,0.023]
[1738008563896,0.150051,99966.0,99959.0,0.023]
[1738008564099,1.57669573,99968.0,99958.0,0.173]
[1738008564303,0.150051,99966.0,99958.0,0.173]
[1738008564507,0.150057,99962.0,99958.0,0.173]
[1738008564836,0.150051,99966.0,99958.0,0.173]
[1738008564953,0.200067,99967.0,99958.0,0.173]
[1738008565157,0.15005,99967.0,99956.0,0.173]
[1738008565366,0.150051,99966.0,99956.0,0.173]
[1738008565552,0.150053,99965.0,99958.0,0.023]
[1738008565758,1.77690133,99968.0,99958.0,0.023]
[1738008566129,1.77690133,99968.0,99956.0,0.15]
[1738008566130,0.00100939,99967.0,99956.0,0.15]
[1738008566353,0.200068,99966.0,99950.0,0.023]
[1738008566566,0.00100939,99965.0,99952.0,0.15]
[1738008566794,0.00100939,99965.0,99953.0,0.023]
[1738008567011,0.150069,99954.0,99953.0,0.0080848]
[1738008567225,1.87082721,99954.0,99953.0,0.0080848]
[1738008567501,1.71974882,99954.0,99925.0,0.023]
[1738008567725,1.49800153,99954.0,99953.0,0.15007]
[1738008567925,1.49800153,99954.0,99953.0,0.32307]
[1738008568127,1.49800153,99954.0,99953.0,0.33007093]
[1738008568942,1.49800153,99954.0,99953.0,0.33107093]
[1738008570084,1.49800153,99954.0,99953.0,0.33007093]
[1738008570469,1.49800153,99954.0,99953.0,0.33207093]
[1738008571078,1.49800153,99954.0,99953.0,0.33007093]
[1738008571232,1.49800153,99954.0,99953.0,0.33207093]
[1738008571783,1.49800153,99954.0,99953.0,0.33007093]
[1738008572218,1.49800153,99954.0,99953.0,0.18200093]
[1738008572418,1.49800153,99954.0,99953.0,0.15900093]
[1738008573046,1.49800153,99954.0,99953.0,0.152]
[1738008573252,1.49800153,99954.0,99953.0,0.15900093]
[1738008573432,1.49800153,99954.0,99953.0,0.15700093]
[1738008573812,1.49800153,99954.0,99953.0,0.15900093]
[1738008574045,1.49800153,99954.0,99953.0,0.15700093]
[1738008574477,1.49900153,99954.0,99953.0,0.15700093]
[1738008574799,1.49800153,99954.0,99953.0,0.15]
[1738008574943,1.49900153,99954.0,99953.0,0.15]
[1738008575158,0.001,99954.0,99953.0,0.42741822]
[1738008575367,0.99531149,99967.0,99966.0,0.323051]
[1738008575561,0.99531149,99967.0,99966.0,0.33120975]
[1738008575767,0.0006358,99968.0,99967.0,0.323049]
[1738008575972,0.0006358,99968.0,99967.0,0.3300416]
[1738008576591,1.14599529,99968.0,99967.0,0.1569926]
[1738008576812,1.36624258,99968.0,99967.0,0.0090806]
[1738008577049,1.36624258,99968.0,99953.0,0.5394]
[1738008577050,0.150069,99954.0,99953.0,0.5394]
[1738008577295,0.0776,99941.0,99922.0,0.5394]
[1738008577559,0.99531149,99941.0,99940.0,0.32309]
[1738008577777,0.50269004,99953.0,99952.0,0.323072]
[1738008578243,0.50269004,99953.0,99952.0,0.33217668]
[1738008579120,0.50269004,99953.0,99952.0,0.15910468]
[1738008579377,0.50269004,99953.0,99952.0,0.14969999]
[1738008579632,0.50269004,99953.0,99941.0,0.023]
[1738008579851,0.50269004,99953.0,99947.0,0.023]
[1738008580036,0.00100939,99952.0,99942.0,0.150085]
[1738008580285,0.65276104,99953.0,99938.0,0.023]
[1738008580286,0.00100939,99951.0,99938.0,0.023]
[1738008580484,0.150081,99946.0,99943.0,0.00911086]
[1738008580696,0.99531149,99946.0,99940.0,0.150089]
[1738008580910,0.99531149,99946.0,99934.0,0.400261]
[1738008580911,0.99531149,99946.0,99944.0,0.00911007]
[1738008581151,0.99531149,99946.0,99934.0,0.0101132]
[1738008581373,0.07790939,99945.0,99927.0,0.01019354]
[1738008581585,0.150094,99937.0,99927.0,0.01019354]
[1738008581798,0.70281604,99937.0,99932.0,0.00911952]
[1738008582038,0.50269004,99937.0,99927.0,0.023]
[1738008582255,0.50269004,99937.0,99933.0,0.00911873]
[1738008582471,0.50269004,99937.0,99924.0,0.150113]
[1738008582472,0.50269004,99937.0,99929.0,0.023]
[1738008582965,0.50269004,99937.0,99931.0,0.023]
[1738008583422,0.50269004,99937.0,99932.0,0.15911952]
[1738008583628,0.50269004,99937.0,99934.0,0.001]
[1738008584022,0.50269004,99937.0,99935.0,0.00911715]
[1738008584289,0.50269004,99937.0,99936.0,0.323096]
[1738008584707,0.50269004,99937.0,99936.0,0.33221237]
[1738008586781,0.50269004,99937.0,99936.0,0.33321237]
[1738008587695,0.50269004,99937.0,99936.0,0.33221237]
[1738008587969,0.50269004,99937.0,99936.0,0.33521237]
[1738008588224,0.50269004,99937.0,99936.0,0.42955966]
[1738008588412,0.50269004,99937.0,99936.0,0.43255966]
[1738008588725,0.50269004,99937.0,99936.0,0.33521237]
[1738008588924,0.50269004,99937.0,99936.0,0.16211637]
[1738008589127,0.50269004,99937.0,99936.0,0.16311637]
[1738008589335,0.50269004,99937.0,99936.0,0.18611637]
[1738008589550,0.50269004,99937.0,99936.0,0.33521237]
[1738008589976,0.50269004,99937.0,99936.0,0.33621237]
[1738008590177,0.50269004,99937.0,99936.0,0.33321237]
[1738008590387,0.50269004,99937.0,99936.0,0.43055966]
[1738008590588,0.99531149,99946.0,99945.0,0.300082]
[1738008590817,0.99531149,99946.0,99945.0,0.323082]
[1738008591037,0.99531149,99946.0,99945.0,0.33222197]
[1738008591470,0.99531149,99955.0,99954.0,0.300069]
[1738008591671,0.99531149,99955.0,99954.0,0.323069]
[1738008591876,0.99531149,99955.0,99954.0,0.33220188]
[1738008593429,0.99531149,99967.0,99966.0,0.300051]
[1738008594082,0.99531149,99967.0,99966.0,0.33216176]
[1738008595108,0.99631149,99967.0,99966.0,0.33216176]
[1738008595951,0.001,99967.0,99966.0,0.97888687]
[1738008596160,0.0006358,99968.0,99966.0,0.97888687]
[1738008596368,0.0001418,99976.0,99967.0,0.42139629]
[1738008596584,0.00028997,99976.0,99975.0,0.323037]
[1738008596786,0.00028997,99976.0,99975.0,0.42945298]
[1738008597609,0.00028997,99976.0,99975.0,0.47495298]
[1738008598054,0.00028997,99976.0,99975.0,0.47795298]
[1738008598262,0.99573619,100010.0,99977.0,0.323034]
[1738008598469,1.49842623,100010.0,99977.0,0.42038129]
[1738008598614,0.99573619,100010.0,99977.0,0.42942453]
[1738008599015,1.49842623,100010.0,99977.0,0.42942453]
[1738008599445,1.49842623,100010.0,99977.0,0.43042453]
[1738008600115,0.99573619,100010.0,99977.0,0.43442453]
[1738008600348,1.49842623,100010.0,99977.0,0.43442453]
[1738008600777,0.00115089,100000.0,99977.0,0.42167272]
[1738008601018,0.99531149,99998.0,99977.0,0.42167272]
[1738008601224,0.99531149,99983.0,99977.0,0.44467272]
[1738008601443,0.50269004,99983.0,99977.0,0.44467272]
[1738008601647,0.50269004,99992.0,99977.0,0.44467272]
[1738008602073,0.50269004,99992.0,99977.0,1.32137272]
[1738008602279,0.99531149,99993.0,99977.0,1.31137272]
[1738008602493,0.50269004,99990.0,99977.0,1.31137272]
[1738008602928,0.99531149,99993.0,99992.0,0.150012]
[1738008603147,0.99531149,99993.0,99992.0,0.42035929]
[1738008603148,1.49800153,99993.0,99992.0,0.42035929]
[1738008603365,1.49800153,99993.0,99992.0,0.42847761]
[1738008604000,1.49800153,99993.0,99992.0,0.33113032]
[1738008604212,1.49800153,99993.0,99992.0,0.03111832]
[1738008604417,1.49800153,99993.0,99992.0,0.18113032]
[1738008604594,1.49800153,99993.0,99992.0,0.173012]
[1738008604751,1.49900153,99993.0,99992.0,0.03112025]
[1738008604974,1.49900153,99993.0,99992.0,0.023]
[1738008605619,1.49900153,99993.0,99992.0,0.03112025]
[1738008606054,1.49800153,99993.0,99992.0,0.03112025]
[1738008606208,1.49800153,99993.0,99992.0,0.00812025]
[1738008606408,1.49900153,99993.0,99989.0,0.15]
[1738008606609,1.49800153,99993.0,99985.0,0.15]
[1738008606814,1.49800153,99993.0,99992.0,0.300012]
[1738008607012,1.49900153,99993.0,99992.0,0.15]
[1738008607212,1.49800153,99993.0,99992.0,0.15813278]
[1738008607706,0.048,99991.0,99936.0,0.00029715]
[1738008607913,0.0768,99963.0,99938.0,0.200124]
[1738008608121,0.048,99961.0,99936.0,0.01075025]
[1738008608321,0.00100939,99960.0,99940.0,0.20012]
[1738008608530,0.150062,99959.0,99946.0,0.15008]
[1738008608697,0.048,99961.0,99936.0,0.00079135]
[1738008608698,0.00100939,99958.0,99936.0,0.00079135]
[1738008608913,0.200086,99957.0,99936.0,0.01071613]
[1738008609079,0.048,99961.0,99940.0,0.11536318]
[1738008609294,0.150062,99959.0,99947.0,0.023]
[1738008609491,0.00100939,99960.0,99950.0,0.173]
[1738008609728,0.200084,99958.0,99920.0,0.11536318]
[1738008609955,0.00100939,99957.0,99928.0,0.200142]
[1738008610178,0.00100939,99957.0,99940.0,0.15]
[1738008610179,0.150066,99956.0,99940.0,0.15]
[1738008610404,0.150066,99956.0,99943.0,0.173]
[1738008610641,0.048,99961.0,99953.0,0.150069]
[1738008610835,1.57480153,99963.0,99962.0,0.150057]
[1738008611040,1.49800153,99963.0,99962.0,0.173]
[1738008611216,1.49800153,99963.0,99962.0,0.15]
[1738008611418,1.49800153,99963.0,99936.0,0.00079135]
[1738008611419,1.59534882,99963.0,99936.0,0.00079135]
[1738008611589,0.150072,99952.0,99937.0,0.150094]
[1738008611805,0.150074,99951.0,99938.0,0.15]
[1738008612019,0.0764,99950.0,99943.0,0.173]
[1738008612737,0.150077,99949.0,99943.0,0.173]
[1738008612972,0.0764,99950.0,99941.0,0.173]
[1738008613191,0.0764,99950.0,99945.0,0.15]
[1738008613397,0.0764,99950.0,99945.0,0.300081]
[1738008613604,1.49800153,99952.0,99951.0,0.323073]
[1738008614032,1.49800153,99952.0,99951.0,0.173]
[1738008615212,1.64807353,99952.0,99951.0,0.15]
[1738008615931,1.49800153,99952.0,99951.0,0.15]
[1738008616158,1.49800153,99952.0,99951.0,0.323073]
[1738008616347,1.49800153,99952.0,99951.0,0.325073]
[1738008616541,1.49800153,99952.0,99951.0,0.33236305]
[1738008616919,1.49800153,99952.0,99951.0,0.33336305]
[1738008617119,1.49800153,99952.0,99951.0,0.33236305]
[1738008617353,1.49800153,99952.0,99951.0,0.43171034]
[1738008617552,1.49800153,99952.0,99951.0,0.44151585]
[1738008617754,1.49800153,99952.0,99951.0,0.34216856]
[1738008617989,1.49800153,99952.0,99951.0,0.34416856]
[1738008619000,1.49800153,99952.0,99951.0,0.34516856]
[1738008619285,1.49800153,99952.0,99951.0,0.44051585]
[1738008619491,0.50269004,99952.0,99951.0,0.44451585]
[1738008619730,0.50269004,99952.0,99951.0,0.44051585]
[1738008620151,0.50269004,99952.0,99951.0,0.44351585]
[1738008620512,0.50269004,99952.0,99951.0,0.44051585]
[1738008620970,0.50269004,99952.0,99951.0,0.44551585]
[1738008621181,0.50269004,99952.0,99951.0,0.44051585]
[1738008621852,0.50269004,99952.0,99951.0,0.43951585]
[1738008622083,0.50269004,99952.0,99951.0,0.34216856]
[1738008622303,0.50269004,99952.0,99951.0,0.34416856]
[1738008622520,0.50269004,99952.0,99951.0,0.34916856]
[1738008622753,0.50269004,99952.0,99951.0,0.34216856]
[1738008622986,0.50269004,99952.0,99951.0,0.34316856]
[1738008623245,0.50269004,99952.0,99951.0,0.44451585]
[1738008624157,0.99531149,99966.0,99962.0,0.15]
[1738008624420,1.49800153,99966.0,99965.0,0.323052]
[1738008624824,1.49800153,99966.0,99965.0,0.33230433]
[1738008626235,1.49900153,99966.0,99965.0,0.33230433]
[1738008626639,1.49900153,99966.0,99965.0,0.323052]
[1738008626854,1.64905253,99966.0,99965.0,0.15]
[1738008627052,1.49800153,99966.0,99945.0,0.20011]
[1738008627319,0.200076,99962.0,99942.0,0.023]
[1738008627537,0.200076,99962.0,99951.0,0.17329736]
[1738008627753,0.150055,99963.0,99954.0,0.173]
[1738008627954,0.227654,99964.0,99955.0,0.173]
[1738008628191,0.150058,99962.0,99955.0,0.173]
[1738008628378,0.0776,99964.0,99955.0,0.173]
[1738008628597,0.150061,99960.0,99955.0,0.173]
[1738008628930,0.150063,99958.0,99955.0,0.173]
[1738008629093,0.150063,99958.0,99951.0,0.02329736]
[1738008629261,0.150059,99961.0,99954.0,0.173]
[1738008629470,0.150066,99956.0,99954.0,0.173]
[1738008629688,0.150067,99955.0,99954.0,0.15]
[1738008629890,1.49800153,99956.0,99954.0,0.15]
[1738008629891,1.49800153,99956.0,99955.0,0.001]
[1738008630302,1.49800153,99956.0,99951.0,0.00029736]
[1738008630511,1.49900153,99956.0,99951.0,0.00029736]
[1738008630756,1.64806853,99956.0,99951.0,0.00029736]
[1738008630959,0.150072,99952.0,99951.0,0.00029736]
[1738008633389,0.150072,99952.0,99951.0,0.00129736]
[1738008633886,0.20009,99955.0,99951.0,0.00129736]
[1738008634289,0.150072,99952.0,99951.0,0.00129736]
[1738008636521,0.15108139,99952.0,99951.0,0.00129736]
[1738008638159,0.00087064,99951.0,99943.0,0.00029736]
[1738008638370,0.229784,99944.0,99943.0,0.00029736]
[1738008638589,1.89262695,99944.0,99943.0,0.00029736]
[1738008638801,1.99262695,99944.0,99943.0,0.00029736]
[1738008639015,2.0125527,99944.0,99943.0,0.00029736]
[1738008639219,2.03278152,99944.0,99943.0,3.6e-07]
[1738008639423,0.225745,99903.0,99902.0,0.00029736]
[1738008639609,1.72374653,99903.0,99902.0,0.00044553]
[1738008639821,1.49800153,99903.0,99902.0,0.00044553]
[1738008640050,1.49800153,99903.0,99902.0,0.17359253]
[1738008640271,1.49800153,99903.0,99902.0,0.15059253]
[1738008640473,1.49800153,99903.0,99902.0,0.31146189]
[1738008640895,1.49800153,99903.0,99902.0,0.33446189]
[1738008641324,1.49800153,99903.0,99902.0,0.33046189]
[1738008642364,1.49800153,99903.0,99902.0,0.33146189]
[1738008642773,1.49800153,99903.0,99902.0,0.33446189]
[1738008646949,0.0801,99931.0,99929.0,0.150106]
[1738008647168,1.49800153,99931.0,99909.0,0.15]
[1738008647376,1.49800153,99931.0,99930.0,0.00672916]
[1738008647587,1.49800153,99931.0,99923.0,0.15]
[1738008647798,0.150111,99926.0,99923.0,0.15]
[1738008648011,1.49800153,99931.0,99923.0,0.15]
[1738008648220,1.64810553,99931.0,99925.0,0.150111]
[1738008648456,0.150107,99929.0,99923.0,0.15]
[1738008648665,1.49800153,99931.0,99923.0,0.150115]
[1738008648838,1.49800153,99931.0,99921.0,0.15]
[1738008649167,1.64910553,99931.0,99925.0,0.150112]
[1738008649372,1.64910553,99931.0,99922.0,0.223156]
[1738008649373,0.150106,99929.0,99923.0,0.15]
[1738008649622,0.200143,99929.0,99926.0,0.0067285]
[1738008649803,1.49800153,99931.0,99923.0,0.15]
[1738008650052,0.150107,99929.0,99923.0,0.15]
[1738008650242,0.15011,99927.0,99923.0,0.15]
[1738008650386,0.150112,99926.0,99924.0,0.00672926]
[1738008650615,0.150108,99928.0,99923.0,0.15]
[1738008650814,0.001,99929.0,99924.0,0.00672926]
[1738008651049,0.001,99929.0,99924.0,0.150113]
[1738008651392,0.001,99929.0,99923.0,0.15]
[1738008651601,0.001,99929.0,99920.0,0.173]
[1738008651810,0.151107,99929.0,99924.0,0.150113]
[1738008652029,0.150107,99929.0,99925.0,0.00672955]
[1738008652264,1.50200153,99931.0,99927.0,0.200146]
[1738008652473,1.49800153,99931.0,99930.0,0.173105]
[1738008652678,1.49800153,99931.0,99930.0,0.323105]
[1738008652884,1.64810453,99931.0,99930.0,0.15672636]
[1738008653097,1.49800153,99931.0,99930.0,0.15672636]
[1738008653297,1.49800153,99931.0,99930.0,0.15]
[1738008653618,1.49800153,99931.0,99930.0,0.300105]
[1738008653833,1.50000153,99931.0,99930.0,0.30683136]
[1738008654677,1.50000153,99931.0,99930.0,0.32983136]
[1738008656112,1.50100153,99931.0,99930.0,0.32983136]
[1738008656308,0.99831149,99931.0,99930.0,0.32983136]
[1738008656885,0.99731149,99931.0,99930.0,0.32983136]
[1738008657114,0.99631149,99931.0,99930.0,0.32983136]
[1738008657428,1.49900153,99931.0,99930.0,0.33183136]
[1738008657634,1.49900153,99931.0,99930.0,0.32983136]
[1738008658063,1.49800153,99931.0,99930.0,0.33183136]
[1738008658274,1.49800153,99931.0,99930.0,0.18172636]
[1738008659152,1.49800153,99931.0,99930.0,0.32983136]
[1738008659439,1.49800153,99931.0,99930.0,0.18072636]
[1738008659852,1.49800153,99931.0,99930.0,0.17972636]
[1738008660052,1.49800153,99931.0,99930.0,0.18072636]
[1738008660257,1.49800153,99931.0,99930.0,0.33083136]
[1738008660468,1.49800153,99931.0,99930.0,0.32983136]
[1738008661093,1.49800153,99931.0,99930.0,0.15672636]
[1738008661713,1.49800153,99931.0,99930.0,0.15]
[1738008661930,1.64810453,99931.0,99930.0,0.15]
[1738008662148,1.49800153,99931.0,99930.0,0.15]
[1738008662766,1.49800153,99931.0,99930.0,0.300105]
[1738008662962,1.49800153,99931.0,99930.0,0.17971331]
[1738008663168,1.49800153,99931.0,99930.0,0.32981831]
[1738008663519,1.50000153,99931.0,99930.0,0.32981831]
[1738008663771,1.49900153,99931.0,99930.0,0.32981831]
[1738008663970,1.49800153,99931.0,99930.0,0.32981831]
[1738008665293,1.49800153,99931.0,99930.0,0.17971331]
[1738008665520,1.49814323,99931.0,99930.0,0.173]
[1738008665737,1.64824623,99931.0,99930.0,0.15671259]
[1738008665930,1.49814323,99931.0,99930.0,0.15671259]
[1738008666169,1.64824623,99931.0,99930.0,0.151]
[1738008666348,1.49814323,99931.0,99930.0,0.151]
[1738008666594,1.49814323,99931.0,99930.0,0.15]
[1738008666810,1.49814323,99931.0,99930.0,0.151]
[1738008667020,1.64824623,99931.0,99930.0,0.151]
[1738008667199,1.64824623,99931.0,99930.0,0.15]
[1738008667352,1.49914323,99931.0,99930.0,0.15]
[1738008667554,1.64924623,99931.0,99930.0,0.15]
[1738008668160,1.64924623,99931.0,99919.0,0.150121]
[1738008668368,1.64924623,99931.0,99904.0,0.5394]
[1738008668369,0.00100939,99930.0,99908.0,0.150137]
[1738008668575,0.200154,99923.0,99911.0,0.173]
[1738008668782,0.00100939,99922.0,99909.0,0.00671835]
[1738008668988,0.150123,99918.0,99913.0,0.023]
[1738008669185,1.49800153,99918.0,99913.0,0.023]
[1738008669388,1.49800153,99918.0,99916.0,0.173]
[1738008669627,1.49800153,99918.0,99911.0,0.15]
[1738008669833,1.49800153,99918.0,99917.0,0.00671495]
[1738008670010,1.49800153,99918.0,99917.0,0.32983895]
[1738008670429,1.64812453,99918.0,99917.0,0.15671495]
[1738008670636,1.49800153,99918.0,99917.0,0.15671495]
[1738008670842,1.49800153,99918.0,99917.0,0.00671495]
[1738008670996,1.49800153,99918.0,99905.0,0.200189]
[1738008671227,1.49800153,99918.0,99917.0,0.150124]
[1738008671423,1.49800153,99918.0,99915.0,0.15]
[1738008671628,1.49800153,99918.0,99916.0,0.00671538]
[1738008671828,1.49800153,99918.0,99917.0,0.173124]
[1738008672025,1.49800153,99918.0,99917.0,0.17983895]
[1738008672448,1.49800153,99918.0,99917.0,0.43018624]
[1738008672449,0.50269004,99918.0,99917.0,0.43018624]
[1738008672652,0.50269004,99918.0,99917.0,1.04498624]
[1738008672856,0.50269004,99927.0,99926.0,0.323111]
[1738008672999,0.0011337,99931.0,99930.0,0.300105]
[1738008673238,0.0001417,99931.0,99930.0,0.96656382]
[1738008675037,0.0001417,99931.0,99930.0,0.96156382]
[1738008676097,0.0001417,99931.0,99930.0,0.96256382]
[1738008676308,0.50283174,99931.0,99930.0,0.97285525]
[1738008676943,0.50283174,99931.0,99930.0,0.33610796]
[1738008677575,0.0001417,99931.0,99930.0,0.43345525]
[1738008678009,0.0001417,99931.0,99930.0,1.05565525]
[1738008678218,0.00087064,99951.0,99950.0,0.150075]
[1738008678424,0.00087064,99951.0,99950.0,0.95982229]
[1738008678636,0.00087064,99951.0,99950.0,0.96651578]
[1738008679478,0.00136444,99951.0,99950.0,0.96651578]
[1738008680419,0.00136444,99951.0,99950.0,0.96751578]
[1738008680846,0.00136444,99951.0,99950.0,0.96651578]
[1738008681419,0.00136444,99951.0,99950.0,0.96851578]
[1738008681642,0.00136444,99951.0,99950.0,0.96751578]
[1738008682044,0.00136444,99951.0,99950.0,0.98152909]
[1738008682404,0.00136444,99951.0,99950.0,1.44032909]
[1738008683210,0.50381314,99993.0,99989.0,0.150016]
[1738008683408,0.50381314,99993.0,99989.0,0.17966525]
[1738008683689,0.50283164,99993.0,99989.0,0.32966525]
[1738008684741,0.0011416,99990.0,99989.0,0.33066525]
[1738008685446,0.0001416,99990.0,99989.0,0.32966525]
[1738008685853,0.0011416,99990.0,99989.0,0.33066525]